bitfinex-derivatives/quotes_BTCF0:USTF0_20250928
["timestamp","ask_amount","ask_price","bid_price","bid_amount"]
[1759084563612,0.13400634,110260.0,110250.0,1.69401267]
[1759084564813,0.13800634,110260.0,110250.0,1.69401267]
[1759084565516,0.13800634,110260.0,110250.0,1.64506654]
[1759084575529,0.13800634,110260.0,110250.0,1.69401267]
[1759084579032,0.13800634,110260.0,110250.0,0.87353267]
[1759084579329,0.13600634,110260.0,110250.0,1.33349267]
[1759084579527,0.13600634,110260.0,110250.0,1.33345267]
[1759084580334,0.13300634,110260.0,110250.0,1.33345267]
[1759084581128,0.13800634,110260.0,110250.0,1.33345267]
[1759084588341,0.13100634,110260.0,110250.0,1.33345267]
[1759084588542,0.13500634,110260.0,110250.0,1.33345267]
[1759084589442,0.13500634,110260.0,110250.0,1.69425267]
[1759084589942,0.13100634,110260.0,110250.0,1.69425267]
[1759084590144,0.13800634,110260.0,110250.0,1.69425267]
[1759084590943,0.13100634,110260.0,110250.0,1.69425267]
[1759084591145,0.13500634,110260.0,110250.0,1.69425267]
[1759084592943,0.13800634,110260.0,110250.0,1.69425267]
[1759084602049,0.13800634,110260.0,110250.0,1.33421267]
[1759084603155,0.13800634,110260.0,110250.0,1.33417267]
[1759084603350,0.13800634,110260.0,110250.0,0.51273267]
[1759084603559,0.13800634,110260.0,110250.0,0.17339593]
[1759084603857,0.47734308,110260.0,110250.0,0.99479593]
[1759084604046,0.47734308,110260.0,110250.0,0.99503593]
[1759084605361,0.47734308,110260.0,110250.0,0.17339593]
[1759084605553,0.47734308,110260.0,110250.0,0.99515593]
[1759084605751,0.47034308,110260.0,110250.0,0.99515593]
[1759084606060,0.47234308,110260.0,110250.0,0.99515593]
[1759084606357,0.47034308,110260.0,110250.0,0.99515593]
[1759084606560,0.47734308,110260.0,110250.0,1.33449267]
[1759084607659,0.47734308,110260.0,110250.0,0.17339593]
[1759084607854,0.47734308,110260.0,110250.0,0.99511593]
[1759084608862,0.47734308,110260.0,110250.0,0.17339593]
[1759084609157,0.47734308,110260.0,110250.0,0.99515593]
[1759084610049,0.47734308,110260.0,110250.0,0.99511593]
[1759084611056,0.47734308,110260.0,110250.0,0.17339593]
[1759084611258,0.47734308,110260.0,110250.0,0.99511593]
[1759084612556,0.47734308,110260.0,110250.0,1.33445267]
[1759084613558,0.47734308,110260.0,110250.0,0.99511593]
[1759084614661,0.47734308,110260.0,110250.0,0.17339593]
[1759084614859,0.47734308,110260.0,110250.0,0.99503593]
[1759084615661,1.36111756,110260.0,110250.0,0.1244498]
[1759084615960,1.39375681,110260.0,110250.0,0.1244498]
[1759084621866,2.21535681,110260.0,110250.0,0.1244498]
[1759084623259,2.21535681,110260.0,110230.0,0.44437613]
[1759084623260,0.0906778,110240.0,110230.0,0.44437613]
[1759084623468,0.74225508,110240.0,110230.0,0.1253156]
[1759084624262,1.51413485,110240.0,110220.0,0.04894613]
[1759084624463,1.68712284,110240.0,110230.0,0.0906862]
[1759084624767,1.68812284,110240.0,110230.0,0.0906862]
[1759084625264,1.68712284,110240.0,110230.0,0.0906862]
[1759084625465,0.86532284,110240.0,110230.0,0.0906862]
[1759084625663,2.02661285,110240.0,110230.0,0.0906862]
[1759084627062,2.02761285,110240.0,110230.0,0.0906862]
[1759084628166,2.00609636,110240.0,110230.0,0.0906862]
[1759084628968,1.18429636,110240.0,110230.0,0.0906862]
[1759084629168,2.00649636,110240.0,110230.0,0.0906862]
[1759084629360,1.18429636,110240.0,110230.0,0.0906862]
[1759084629667,2.00649636,110240.0,110230.0,0.0906862]
[1759084630268,1.18429636,110240.0,110230.0,0.0906862]
[1759084630472,2.00649636,110240.0,110230.0,0.0906862]
[1759084630866,1.18429636,110240.0,110230.0,0.0906862]
[1759084631072,2.00673636,110240.0,110230.0,0.0906862]
[1759084632569,2.00677636,110240.0,110230.0,0.0906862]
[1759084632968,1.18429636,110240.0,110230.0,0.0906862]
[1759084633270,2.00665636,110240.0,110230.0,0.0906862]
[1759084635172,2.00669636,110240.0,110230.0,0.1133062]
[1759084636273,1.18429636,110240.0,110230.0,0.1133062]
[1759084636472,2.00653636,110240.0,110230.0,0.1133062]
[1759084638478,1.32755634,110240.0,110230.0,0.1133062]
[1759084638779,1.22607834,110240.0,110230.0,0.46553621]
[1759084638979,1.56556835,110240.0,110230.0,0.46553621]
[1759084639779,1.90505836,110240.0,110230.0,0.46553621]
[1759084640078,1.90557836,110240.0,110230.0,0.46553621]
[1759084641578,1.90557836,110240.0,110230.0,0.0906862]
[1759084641770,0.1190563,110230.0,110220.0,0.0906865]
[1759084641977,0.45854631,110230.0,110220.0,0.1119865]
[1759084642377,0.47926327,110230.0,110220.0,0.1119865]
[1759084642877,0.38857697,110230.0,110220.0,0.1139865]
[1759084643077,0.47926317,110230.0,110220.0,0.1159865]
[1759084648694,1.30242317,110230.0,110220.0,0.1159865]
[1759084649097,0.47926317,110230.0,110220.0,0.1159865]
[1759084649296,0.38857697,110230.0,110220.0,0.1159865]
[1759084649492,1.21169697,110230.0,110220.0,0.1159865]
[1759084649692,0.38857697,110230.0,110220.0,0.1159865]
[1759084649892,1.21165697,110230.0,110220.0,0.1159865]
[1759084650697,1.30234307,110230.0,110220.0,0.1159865]
[1759084657901,1.21165697,110230.0,110220.0,0.1159865]
[1759084658602,1.30234297,110230.0,110220.0,0.1159865]
[1759084659301,1.21165697,110230.0,110220.0,0.1159865]
[1759084662002,1.21165697,110230.0,110220.0,0.16493263]
[1759084663096,0.38288697,110230.0,110220.0,0.17767263]
[1759084663303,0.38288697,110230.0,110220.0,0.51716264]
[1759084663493,1.20556697,110230.0,110220.0,0.51716264]
[1759084665601,1.20556697,110230.0,110220.0,0.46821651]
[1759084667505,0.38288697,110230.0,110220.0,0.46821651]
[1759084667701,1.20576697,110230.0,110220.0,0.82901651]
[1759084670306,1.20576697,110230.0,110220.0,0.87796264]
[1759084671306,1.18505001,110230.0,110220.0,0.87796264]
[1759084671500,1.20582692,110230.0,110220.0,0.87796264]
[1759084677712,1.20582692,110230.0,110220.0,0.87596264]
[1759084677914,1.20682692,110230.0,110220.0,0.87596264]
[1759084678615,1.20982692,110230.0,110220.0,0.87596264]
[1759084678916,0.04745691,110230.0,110220.0,0.87396264]
[1759084679215,0.38894692,110230.0,110220.0,2.09656264]
[1759084680017,0.38894692,110230.0,110220.0,1.27396264]
[1759084680316,0.38894692,110230.0,110220.0,2.09660264]
[1759084680915,0.38894692,110230.0,110220.0,0.93447263]
[1759084681116,0.38894692,110230.0,110220.0,2.09660264]
[1759084682622,0.38894692,110230.0,110220.0,1.75707263]
[1759084682810,0.38894692,110230.0,110220.0,1.73624264]
[1759084684322,0.38899071,110230.0,110220.0,1.39675263]
[1759084687620,0.04945691,110230.0,110220.0,1.39675263]
[1759084687823,0.38899071,110230.0,110220.0,1.39675263]
[1759084688820,0.04945691,110230.0,110220.0,1.39675263]
[1759084691823,0.04945691,110230.0,110220.0,1.73644643]
[1759084692020,0.38899071,110230.0,110220.0,1.39691263]
[1759084697321,0.38899071,110230.0,110220.0,1.39667263]
[1759084698429,0.38899071,110230.0,110220.0,1.39659263]
[1759084700925,0.38899071,110230.0,110220.0,0.57367263]
[1759084701131,0.38899071,110230.0,110220.0,1.39643263]
[1759084702031,0.38899071,110230.0,110220.0,0.57367263]
[1759084702233,0.38899071,110230.0,110220.0,1.39635263]
[1759084709437,0.38899071,110230.0,110220.0,0.57367263]
[1759084709636,0.38899071,110230.0,110220.0,1.39607263]
[1759084711936,0.38899071,110230.0,110220.0,0.57367263]
[1759084712139,0.38899071,110230.0,110220.0,1.39591263]
[1759084713843,0.38899071,110230.0,110220.0,0.57367263]
[1759084714033,0.38899071,110230.0,110220.0,1.39579263]
[1759084715042,0.38899071,110230.0,110220.0,0.57367263]
[1759084715338,0.38899071,110230.0,110220.0,1.39579263]
[1759084716036,0.04945691,110230.0,110220.0,1.39579263]
[1759084716339,0.38899071,110230.0,110220.0,1.39579263]
[1759084716839,0.04945691,110230.0,110220.0,1.39579263]
[1759084717440,0.04945691,110230.0,110220.0,0.57367263]
[1759084717837,0.04945691,110230.0,110220.0,1.39579263]
[1759084719445,0.38899071,110230.0,110220.0,0.99579263]
[1759084720030,0.38899071,110230.0,110220.0,0.17367263]
[1759084720236,0.38899071,110230.0,110220.0,0.99579263]
[1759084723846,0.04945691,110230.0,110220.0,0.99579263]
[1759084724047,0.04945691,110230.0,110220.0,1.33532643]
[1759084724747,0.04945691,110230.0,110220.0,1.69612643]
[1759084730652,0.04945691,110230.0,110220.0,1.35659263]
[1759084730954,0.04945691,110230.0,110220.0,1.69612643]
[1759084731354,0.04945691,110230.0,110220.0,0.87400643]
[1759084731553,0.04945691,110230.0,110220.0,1.69580643]
[1759084731862,0.38899071,110230.0,110220.0,1.35627263]
[1759084732262,0.38899071,110230.0,110220.0,0.53447263]
[1759084732463,0.38899071,110230.0,110220.0,1.35643263]
[1759084734962,0.04945691,110230.0,110220.0,1.35643263]
[1759084736167,0.04945691,110230.0,110220.0,0.53447263]
[1759084736364,0.04945691,110230.0,110220.0,1.35639263]
[1759084741166,0.04945691,110230.0,110220.0,1.69592643]
[1759084744269,0.3889577,110230.0,110220.0,1.69589342]
[1759084745467,0.3889577,110230.0,110220.0,0.87397342]
[1759084745667,0.3889577,110230.0,110220.0,1.69585342]
[1759084746369,0.3889577,110230.0,110220.0,1.33505342]
[1759084746665,0.3889577,110230.0,110220.0,1.69585342]
[1759084747667,0.3889577,110230.0,110220.0,0.87397342]
[1759084747869,0.3889577,110230.0,110220.0,1.69565342]
[1759084764479,0.38892306,110230.0,110220.0,1.69565342]
[1759084770471,0.38892306,110230.0,110220.0,0.87397342]
[1759084770676,0.38892306,110230.0,110220.0,1.69533342]
[1759084772076,0.38892167,110230.0,110220.0,1.69533342]
[1759084774771,0.38892167,110230.0,110220.0,0.53447263]
[1759084774976,0.38892167,110230.0,110220.0,1.69533342]
[1759084775477,0.04942088,110230.0,110220.0,1.69533342]
[1759084775678,0.38892167,110230.0,110220.0,1.69533342]
[1759084777584,0.38892167,110230.0,110220.0,0.87397342]
[1759084777782,0.38892167,110230.0,110220.0,1.69533342]
[1759084780585,0.38892167,110230.0,110220.0,1.33453342]
[1759084780786,0.38892167,110230.0,110220.0,1.69533342]
[1759084782491,0.04942088,110230.0,110220.0,1.69533342]
[1759084782684,0.38892167,110230.0,110220.0,1.69533342]
[1759084783883,0.04942088,110230.0,110220.0,1.69533342]
[1759084784186,0.38892167,110230.0,110220.0,1.64638729]
[1759084790390,0.04942088,110230.0,110220.0,1.64638729]
[1759084790587,0.38892167,110230.0,110220.0,1.64638729]
[1759084791486,0.04942088,110230.0,110220.0,1.98588808]
[1759084791690,0.02674088,110230.0,110220.0,1.98588808]
[1759084792287,0.02674088,110230.0,110220.0,1.3068865]
[1759084792595,0.006,110230.0,110220.0,1.98588808]
[1759084793991,0.003,110230.0,110220.0,1.98588808]
[1759084795380,0.001,110230.0,110220.0,1.98588808]
[1759084795780,0.02173197,110230.0,110220.0,2.03487805]
[1759084795987,0.36123276,110230.0,110220.0,2.03487805]
[1759084797891,0.36123276,110230.0,110220.0,1.69537726]
[1759084801590,0.02173197,110230.0,110220.0,2.03487805]
[1759084801797,0.02173197,110230.0,110220.0,2.38588808]
[1759084802400,0.02089565,110250.0,110240.0,0.1268972]
[1759084802692,0.02089565,110250.0,110240.0,2.03704345]
[1759084803097,0.02089565,110250.0,110240.0,1.98805878]
[1759084803490,0.02689565,110250.0,110240.0,1.16669878]
[1759084803685,0.03089565,110250.0,110240.0,1.98805878]
[1759084804291,0.02489565,110250.0,110240.0,1.98805878]
[1759084804490,0.02789565,110250.0,110240.0,1.16669878]
[1759084804696,0.02789565,110250.0,110240.0,1.98801878]
[1759084804891,0.36739644,110250.0,110240.0,1.64851799]
[1759084805092,0.38593644,110250.0,110240.0,0.82719799]
[1759084805398,0.38793644,110250.0,110240.0,1.64851799]
[1759084805697,0.38793644,110250.0,110240.0,1.69750266]
[1759084806298,0.04843565,110250.0,110240.0,0.82708796]
[1759084806498,0.04843565,110250.0,110240.0,1.64840796]
[1759084809302,0.04843565,110250.0,110240.0,0.82708796]
[1759084809500,0.04843565,110250.0,110240.0,1.64840796]
[1759084809901,0.04843565,110250.0,110240.0,0.4876972]
[1759084810101,0.04843565,110250.0,110240.0,0.1268972]
[1759084810295,0.04843565,110250.0,110240.0,0.9487772]
[1759084810296,0.74862641,110250.0,110240.0,0.9487772]
[1759084811199,1.14862641,110250.0,110240.0,0.1268972]
[1759084811701,1.14862641,110250.0,110230.0,1.55217783]
[1759084811907,0.76210641,110250.0,110240.0,0.1128572]
[1759084812894,0.76010641,110250.0,110240.0,0.1128572]
[1759084813094,0.75710641,110250.0,110240.0,0.1128572]
[1759084814003,0.76010641,110250.0,110240.0,0.1128572]
[1759084814304,0.78093708,110250.0,110240.0,0.1128572]
[1759084815207,0.78293708,110250.0,110240.0,0.1128572]
[1759084818109,1.60489708,110250.0,110240.0,0.1128572]
[1759084818408,0.78293708,110250.0,110240.0,0.1128572]
[1759084818609,0.76204143,110250.0,110240.0,0.1128572]
[1759084819108,1.58396143,110250.0,110240.0,0.1128572]
[1759084819707,0.76204143,110250.0,110240.0,0.1128572]
[1759084819908,1.58392143,110250.0,110240.0,0.1128572]
[1759084821209,0.76204143,110250.0,110240.0,0.1128572]
[1759084821410,1.58384143,110250.0,110240.0,0.1128572]
[1759084821712,0.76204143,110250.0,110240.0,0.1128572]
[1759084821903,1.58384143,110250.0,110240.0,0.1128572]
[1759084823514,0.76204143,110250.0,110240.0,0.1128572]
[1759084823709,1.58384143,110250.0,110240.0,0.1128572]
[1759084831815,1.58384143,110250.0,110240.0,0.16182993]
[1759084832015,0.76204143,110250.0,110240.0,0.16182993]
[1759084832215,1.24541067,110250.0,110240.0,0.16182993]
[1759084832416,1.58480143,110250.0,110240.0,0.16182993]
[1759084832617,1.58476143,110250.0,110240.0,0.16182993]
[1759084833723,0.76204143,110250.0,110240.0,0.16182993]
[1759084834020,1.58480143,110250.0,110240.0,0.16182993]
[1759084840025,0.42265067,110250.0,110240.0,0.16182993]
[1759084840217,1.58476143,110250.0,110240.0,0.16182993]
[1759084840418,1.22396143,110250.0,110240.0,0.16182993]
[1759084840613,1.58476143,110250.0,110240.0,0.16182993]
[1759084841313,1.22396143,110250.0,110240.0,0.16182993]
[1759084841519,0.40124143,110250.0,110240.0,0.16182993]
[1759084841719,1.22384143,110250.0,110240.0,0.16182993]
[1759084842023,0.06185067,110250.0,110240.0,0.16182993]
[1759084842227,0.06185067,110250.0,110240.0,0.50122069]
[1759084842422,0.88485067,110250.0,110240.0,0.50122069]
[1759084842631,0.88485067,110250.0,110240.0,0.16182993]
[1759084842927,0.87141067,110250.0,110240.0,0.17346993]
[1759084843126,0.04837067,110250.0,110240.0,0.17346993]
[1759084843327,0.87141067,110250.0,110240.0,0.17346993]
[1759084843527,0.87141067,110250.0,110240.0,0.51286069]
[1759084844426,0.88433067,110250.0,110240.0,0.50122069]
[1759084846226,0.88433067,110250.0,110240.0,0.16182993]
[1759084847432,1.22372143,110250.0,110240.0,0.16182993]
[1759084849440,1.22372143,110250.0,110240.0,0.52262993]
[1759084850646,0.40068143,110250.0,110240.0,0.52262993]
[1759084850844,1.22332143,110250.0,110240.0,0.52262993]
[1759084851146,0.40068143,110250.0,110240.0,0.52262993]
[1759084851339,1.22332143,110250.0,110240.0,0.52262993]
[1759084851540,0.40068143,110250.0,110240.0,0.52262993]
[1759084851740,1.22328143,110250.0,110240.0,0.52262993]
[1759084852346,0.40068143,110250.0,110240.0,0.52262993]
[1759084852548,1.22328143,110250.0,110240.0,0.52262993]
[1759084853647,0.40068143,110250.0,110240.0,0.52262993]
[1759084853847,1.22316143,110250.0,110240.0,0.87366069]
[1759084854046,0.88377067,110250.0,110240.0,0.87366069]
[1759084857351,0.06129067,110250.0,110240.0,0.87366069]
[1759084857653,0.88365067,110250.0,110240.0,0.87366069]
[1759084863151,0.88365067,110250.0,110240.0,0.52262993]
[1759084863355,0.88365067,110250.0,110240.0,0.86202069]
[1759084864853,0.06129067,110250.0,110240.0,0.86202069]
[1759084865055,0.04837067,110250.0,110240.0,0.87366069]
[1759084865259,0.04837067,110250.0,110240.0,1.27366069]
[1759084865568,0.04837067,110250.0,110240.0,1.22468796]
[1759084865757,0.02583067,110250.0,110240.0,1.22468796]
[1759084866260,0.02583067,110250.0,110240.0,1.56393888]
[1759084866652,0.02583067,110250.0,110240.0,2.38641888]
[1759084866852,0.02383067,110250.0,110240.0,2.38641888]
[1759084867050,0.02083067,110250.0,110240.0,2.38641888]
[1759084867261,0.81745884,110260.0,110250.0,0.1139893]
[1759084867561,0.83838749,110260.0,110250.0,0.50227843]
[1759084869265,0.84138749,110260.0,110250.0,0.50227843]
[1759084869564,0.84338749,110260.0,110250.0,0.50227843]
[1759084871865,0.84338749,110260.0,110250.0,0.45331014]
[1759084876568,0.48258749,110260.0,110250.0,0.45331014]
[1759084876773,0.84338749,110260.0,110250.0,0.45331014]
[1759084881769,0.84338749,110260.0,110250.0,0.50227843]
[1759084884277,0.48258749,110260.0,110250.0,0.50227843]
[1759084884477,0.84338749,110260.0,110250.0,0.50227843]
[1759084889771,0.84336443,110260.0,110250.0,0.50227843]
[1759084890376,0.48256443,110260.0,110250.0,0.50227843]
[1759084890774,0.48256443,110260.0,110250.0,0.86307843]
[1759084893877,0.48256443,110260.0,110250.0,0.52375759]
[1759084894079,0.48256443,110260.0,110250.0,0.86307843]
[1759084894279,0.48256443,110260.0,110250.0,0.50227843]
[1759084895181,0.48256443,110260.0,110250.0,0.16295759]
[1759084895385,0.82188527,110260.0,110250.0,0.50227843]
[1759084895774,0.82188527,110260.0,110250.0,0.45331014]
[1759084896484,0.48256443,110260.0,110250.0,0.45331014]
[1759084896685,0.82188527,110260.0,110250.0,0.45331014]
[1759084897087,0.48256443,110260.0,110250.0,0.45331014]
[1759084899989,0.48256443,110260.0,110250.0,0.1139893]
[1759084900190,0.48256443,110260.0,110250.0,0.45331014]
[1759084904890,0.82188527,110260.0,110250.0,0.45331014]
[1759084905791,0.82188527,110260.0,110250.0,0.50227843]
[1759084906894,0.82188527,110260.0,110250.0,0.16295759]
[1759084907196,0.48256443,110260.0,110250.0,0.50227843]
[1759084908296,0.48256443,110260.0,110250.0,0.16295759]
[1759084908499,0.48256443,110260.0,110250.0,0.50227843]
[1759084911100,0.82188527,110260.0,110250.0,0.50227843]
[1759084916111,0.48256443,110260.0,110250.0,0.50227843]
[1759084924715,0.57322663,110260.0,110250.0,0.50227843]
[1759084925814,0.57322663,110260.0,110250.0,0.16295759]
[1759084926015,0.91254747,110260.0,110250.0,0.50227843]
[1759084926313,0.57327713,110260.0,110250.0,0.16295759]
[1759084927718,0.48261493,110260.0,110250.0,0.16295759]
[1759084932618,0.57327713,110260.0,110250.0,0.16295759]
[1759084936623,0.57327713,110260.0,110250.0,0.1139893]
[1759084945724,0.57327713,110260.0,110250.0,0.16295759]
[1759084950226,0.48261493,110260.0,110250.0,0.16295759]
[1759084958337,0.48260051,110260.0,110250.0,0.16295759]
[1759084964439,1.30384051,110260.0,110250.0,0.16295759]
[1759084964641,0.48260051,110260.0,110250.0,0.16295759]
[1759084964841,1.30380051,110260.0,110250.0,0.16295759]
[1759084966145,1.39446141,110260.0,110250.0,0.16295759]
[1759084966348,1.30380051,110260.0,110250.0,0.16295759]
[1759084974550,0.48260051,110260.0,110250.0,0.16295759]
[1759084974747,1.30376051,110260.0,110250.0,0.16295759]
[1759084976950,0.48260051,110260.0,110250.0,0.16295759]
[1759084977142,1.30376051,110260.0,110250.0,0.16295759]
[1759084977555,0.48260051,110260.0,110250.0,0.16295759]
[1759084977847,1.30376051,110260.0,110250.0,0.16295759]
[1759084980247,1.66456051,110260.0,110250.0,0.16295759]
[1759084981351,1.32518917,110260.0,110250.0,0.16295759]
[1759084981543,1.66456051,110260.0,110250.0,0.16295759]
[1759084985754,1.66456051,110260.0,110250.0,0.1139893]
[1759084988259,1.66456204,110260.0,110250.0,0.1139893]
[1759084990859,1.32518917,110260.0,110250.0,0.1139893]
[1759084991046,2.00393491,110260.0,110250.0,0.1139893]
[1759084995360,1.64313491,110260.0,110250.0,0.1139893]
[1759084995563,2.00393491,110260.0,110250.0,0.1139893]
[1759084995751,2.00393491,110260.0,110250.0,0.16295759]
[1759084997364,2.09459711,110260.0,110250.0,0.16295759]
[1759084999363,1.73379711,110260.0,110250.0,0.16295759]
[1759084999563,2.09459711,110260.0,110250.0,0.16295759]
[1759085001565,1.18277491,110260.0,110250.0,0.16295759]
[1759085001765,2.00385491,110260.0,110250.0,0.16295759]
[1759085001962,1.18277491,110260.0,110250.0,0.16295759]
[1759085002165,2.00385491,110260.0,110250.0,0.16295759]
[1759085003560,1.64305491,110260.0,110250.0,0.16295759]
[1759085003761,2.00385491,110260.0,110250.0,0.16295759]
[1759085004453,1.18277491,110260.0,110250.0,0.16295759]
[1759085004660,1.32506917,110260.0,110250.0,0.16295759]
[1759085005060,2.00381491,110260.0,110250.0,0.16295759]
[1759085005867,1.18277491,110260.0,110250.0,0.16295759]
[1759085006067,0.50402917,110260.0,110250.0,0.50233046]
[1759085006365,2.00381491,110260.0,110250.0,0.50233046]
[1759085006565,1.18277491,110260.0,110250.0,0.50233046]
[1759085006767,2.00381491,110260.0,110250.0,0.50233046]
[1759085008466,2.00381491,110260.0,110250.0,0.16295759]
[1759085008668,2.00381491,110260.0,110250.0,0.50233046]
[1759085009173,1.18277491,110260.0,110250.0,0.50233046]
[1759085009563,2.00381491,110260.0,110250.0,0.50233046]
[1759085010271,1.64301491,110260.0,110250.0,0.50233046]
[1759085019874,0.82197491,110260.0,110250.0,0.50233046]
[1759085020077,1.64301491,110260.0,110250.0,0.50233046]
[1759085025691,1.64301491,110260.0,110250.0,0.45336217]
[1759085030897,2.00381491,110260.0,110250.0,0.45336217]
[1759085031296,2.00377491,110260.0,110250.0,0.45336217]
[1759085032096,2.09443731,110260.0,110250.0,0.45336217]
[1759085032485,2.09443731,110260.0,110250.0,0.1139893]
[1759085035794,2.09443731,110260.0,110250.0,0.16295759]
[1759085037504,0.96418917,110260.0,110250.0,0.50233046]
[1759085037801,1.64293491,110260.0,110250.0,0.50233046]
[1759085040702,0.82197491,110260.0,110250.0,0.50233046]
[1759085040902,1.64293491,110260.0,110250.0,0.50233046]
[1759085041900,0.82197491,110260.0,110250.0,0.50233046]
[1759085042095,1.73359721,110260.0,110250.0,0.16295759]
[1759085042298,1.73359721,110260.0,110250.0,0.13963759]
[1759085042804,1.73359721,110260.0,110250.0,0.16073759]
[1759085043009,1.05485147,110260.0,110250.0,0.16073759]
[1759085043302,1.73359721,110260.0,110250.0,0.16073759]
[1759085045404,1.64293491,110260.0,110250.0,0.16073759]
[1759085048107,1.73359721,110260.0,110250.0,0.16073759]
[1759085048307,1.39424428,110260.0,110250.0,0.16073759]
[1759085052105,0.57328428,110260.0,110250.0,0.16073759]
[1759085052305,1.39420428,110260.0,110250.0,0.16073759]
[1759085055708,0.48262198,110260.0,110250.0,0.16073759]
[1759085055903,1.30354198,110260.0,110250.0,0.16073759]
[1759085056405,0.48262198,110260.0,110250.0,0.16073759]
[1759085056605,1.30354198,110260.0,110250.0,0.16073759]
[1759085057804,1.39420428,110260.0,110250.0,0.16073759]
[1759085058005,0.57328428,110260.0,110250.0,0.16073759]
[1759085058210,1.39420428,110260.0,110250.0,0.16073759]
[1759085063815,1.39415587,110260.0,110250.0,0.16073759]
[1759085065013,1.39411587,110260.0,110250.0,0.16073759]
[1759085066505,0.48257357,110260.0,110250.0,0.16073759]
[1759085066705,1.30345357,110260.0,110250.0,0.16073759]
[1759085068315,1.66425357,110260.0,110250.0,0.16073759]
[1759085072417,0.50398076,110260.0,110250.0,0.16073759]
[1759085072611,1.66421357,110260.0,110250.0,0.16073759]
[1759085075719,1.66421357,110260.0,110250.0,0.1117693]
[1759085085711,1.66421357,110260.0,110250.0,0.16073759]
[1759085089520,1.30341357,110260.0,110250.0,0.16073759]
[1759085089819,1.66421357,110260.0,110250.0,0.16073759]
[1759085095920,1.75487587,110260.0,110250.0,0.16073759]
[1759085098628,1.41548306,110260.0,110250.0,0.16073759]
[1759085098831,1.75487587,110260.0,110250.0,0.16073759]
[1759085108240,2.09425006,110260.0,110250.0,0.16073759]
[1759085114541,1.73345006,110260.0,110250.0,0.16073759]
[1759085114731,2.09425006,110260.0,110250.0,0.16073759]
[1759085115739,2.09425006,110260.0,110250.0,0.1117693]
[1759085119048,1.73345006,110260.0,110250.0,0.1117693]
[1759085119343,2.09425006,110260.0,110250.0,0.1117693]
[1759085119642,1.73345006,110260.0,110250.0,0.1117693]
[1759085119838,2.09425006,110260.0,110250.0,0.1117693]
[1759085125741,2.09425006,110260.0,110250.0,0.16073759]
[1759085136353,2.00358776,110260.0,110250.0,0.16073759]
[1759085137146,1.66420426,110260.0,110250.0,0.16073759]
[1759085138853,2.00358776,110260.0,110250.0,0.16073759]
[1759085146657,2.00358776,110260.0,110250.0,0.13963759]
[1759085151460,2.00322776,110260.0,110250.0,0.16138759]
[1759085160472,1.18274776,110260.0,110250.0,0.16138759]
[1759085160674,2.00314776,110260.0,110250.0,0.16138759]
[1759085161066,1.66376426,110260.0,110250.0,0.16138759]
[1759085161373,1.30296426,110260.0,110250.0,0.16138759]
[1759085161577,2.00314776,110260.0,110250.0,0.16138759]
[1759085162073,1.18274776,110260.0,110250.0,0.16138759]
[1759085162265,2.00314776,110260.0,110250.0,0.16138759]
[1759085162673,1.18274776,110260.0,110250.0,0.16138759]
[1759085162865,2.00314776,110260.0,110250.0,0.16138759]
[1759085163065,2.00314776,110260.0,110250.0,0.50077109]
[1759085164974,1.18274776,110260.0,110250.0,0.50077109]
[1759085165175,2.00314776,110260.0,110250.0,0.50077109]
[1759085165777,1.18274776,110260.0,110250.0,0.4518028]
[1759085165980,2.00314776,110260.0,110250.0,0.4518028]
[1759085166372,1.64234776,110260.0,110250.0,0.4518028]
[1759085166877,0.82194776,110260.0,110250.0,0.4518028]
[1759085167078,1.64230776,110260.0,110250.0,0.4518028]
[1759085167577,0.82194776,110260.0,110250.0,0.4518028]
[1759085167877,1.64230776,110260.0,110250.0,0.4518028]
[1759085170280,1.30291178,110260.0,110250.0,0.1124193]
[1759085175286,0.48255178,110260.0,110250.0,0.1124193]
[1759085175483,1.30287178,110260.0,110250.0,0.1124193]
[1759085175785,1.30287178,110260.0,110250.0,0.16138759]
[1759085177482,0.14318076,110260.0,110250.0,0.16138759]
[1759085177688,1.30287178,110260.0,110250.0,0.16138759]
[1759085181287,0.48255178,110260.0,110250.0,0.16138759]
[1759085181479,1.30283178,110260.0,110250.0,0.16138759]
[1759085182888,0.48255178,110260.0,110250.0,0.16138759]
[1759085183090,1.30283178,110260.0,110250.0,0.16138759]
[1759085190198,0.48255178,110260.0,110250.0,0.16138759]
[1759085190504,1.30279178,110260.0,110250.0,0.16138759]
[1759085192396,0.48255178,110260.0,110250.0,0.16138759]
[1759085192597,1.30275178,110260.0,110250.0,0.16138759]
[1759085193198,1.3027487,110260.0,110250.0,0.16138759]
[1759085194705,1.3027487,110260.0,110250.0,0.52218759]
[1759085195004,0.96337768,110260.0,110250.0,0.86155861]
[1759085195503,0.14317768,110260.0,110250.0,0.86155861]
[1759085196804,0.13355375,110260.0,110250.0,0.86155861]
[1759085197103,0.05977968,110260.0,110250.0,1.27503861]
[1759085197307,0.05877968,110260.0,110250.0,1.27503861]
[1759085197904,0.04772968,110260.0,110250.0,2.09523861]
[1759085198097,0.04572968,110260.0,110250.0,2.09523861]
[1759085198299,0.05072968,110260.0,110250.0,2.09523861]
[1759085199005,0.04972968,110260.0,110250.0,2.09523861]
[1759085199406,0.04972968,110260.0,110250.0,1.69523861]
[1759085199807,0.04472968,110260.0,110250.0,1.69523861]
[1759085200007,0.04672968,110260.0,110250.0,1.69523861]
[1759085201105,0.02589,110260.0,110250.0,1.69515861]
[1759085203708,0.02589,110260.0,110250.0,0.87503861]
[1759085203905,0.02589,110260.0,110250.0,2.03452963]
[1759085205310,0.02589,110260.0,110250.0,1.69515861]
[1759085205810,0.04670945,110260.0,110250.0,1.69515861]
[1759085206609,0.04670945,110260.0,110250.0,2.43452963]
[1759085206808,0.02381945,110260.0,110250.0,2.43452963]
[1759085207007,0.003,110260.0,110250.0,2.09515861]
[1759085207604,0.003,110260.0,110250.0,1.61440963]
[1759085207805,0.003,110260.0,110250.0,1.27503861]
[1759085208006,0.003,110260.0,110250.0,2.09511861]
[1759085208808,0.003,110260.0,110250.0,2.09507861]
[1759085209211,0.001,110260.0,110250.0,2.09607861]
[1759085210008,0.08768,110270.0,110250.0,2.09607861]
[1759085210201,0.13129524,110270.0,110260.0,0.81298332]
[1759085210402,0.13129524,110270.0,110260.0,1.63302332]
[1759085211311,0.13429524,110270.0,110260.0,1.63302332]
[1759085211611,0.13429524,110270.0,110260.0,1.64576332]
[1759085212513,0.13929524,110270.0,110260.0,1.64576332]
[1759085213703,0.13929524,110270.0,110260.0,1.64572332]
[1759085214413,0.13929524,110270.0,110260.0,0.82572332]
[1759085214805,0.13929524,110270.0,110260.0,1.64572332]
[1759085215914,0.13929524,110270.0,110260.0,1.69469161]
[1759085220918,0.06621667,110270.0,110260.0,1.69469161]
[1759085221910,0.02879524,110270.0,110260.0,2.09469161]
[1759085222108,4e-08,110270.0,110260.0,2.40652332]
[1759085222614,4e-08,110270.0,110260.0,2.47165233]
[1759085223622,0.02282,110280.0,110270.0,0.1244419]
[1759085223922,0.02282,110280.0,110270.0,0.87352842]
[1759085225920,0.02382,110280.0,110270.0,0.87352842]
[1759085226110,0.02382,110280.0,110270.0,0.87452842]
[1759085226810,0.02482,110280.0,110270.0,0.87352842]